Cogmind - Beta 13 @@@ ROGUE MODE // 2024.06.19 @ 20:06:25 Player: CONM Result: Destroyed by C-35 Carver with Carbide Saw Performance ------------- Evolutions (7) 3500 Regions Visited (16) 3200 Robots Destroyed (88) 440 Value Destroyed (2789) 2789 Prototype IDs (1) 20 Alien Tech Used (0) 0 Bonus (1637) 1637 TOTAL SCORE: 11586 Bonus ------- High Alert Combat Kills 52 Follower Combat Kills 1036 Entered DSFs 500 Met Imprinter 300 Was Imprinted 300 Friendly Fire -551 Cogmind --------- Core Integrity 0/1300 Matter 201/300 Energy 86/100 System Corruption 4% Temperature Cool (81) Movement Core (50) Location -3/Research Parts ------- > --- POWER (2) -------- (None) > --- PROPULSION (5) --- (None) > --- UTILITY (11) ----- (None) > --- WEAPON (3) ------- (None) > --- INVENTORY (5) ---- VSS Leg Improved Coolant Injector Improved Coolant Injector ECM Suite Precision Phase Gun Peak State ------------ > --- POWER ------------ Light Fission Core Micro Fission Core > --- PROPULSION ------- Titanium Leg Titanium Leg Titanium Leg Flexi-carbon Leg > --- UTILITY ---------- Advanced Heat Sink High-capacity Storage Unit 0b10 Decoder Chip [Scout] Advanced Targeting Computer Phase Shifter Makeshift Light Armor Plating Makeshift Hacking Suite Advanced Hacking Suite > --- WEAPON ----------- Heavy Laser KE Penetrator Hypervelocity Gauss Cannon > --- INVENTORY -------- Light Ion Engine Light Nuclear Core Improved Deuterium Engine Micro Fission Core Fusion Reactor Carbon-fiber Leg Titanium Leg VSS Leg Improved Heat Sink Improved Coolant Injector Improved Coolant Injector Large Storage Unit Energy Filter Improved Particle Charger Phase Shifter Makeshift Hacking Suite Makeshift System Shield Grenade Launcher Scythe [Rating: 81] Favorites ----------- Power Light Ion Engine Engine Light Ion Engine Power Core Light Nuclear Core Reactor Micro Antimatter Reactor Propulsion Advanced Treads Treads Advanced Treads Leg Titanium Leg Wheel Wheel Hover Unit Gyrokinetic Inverter Flight Unit Improved Flight Unit Utility High-capacity Storage Unit Device Improved Heat Sink Storage High-capacity Storage Unit Processor Advanced Targeting Computer Hackware Makeshift Hacking Suite Protection Makeshift Light Armor Plating Weapon Heavy Particle Cannon Energy Gun Beamcaster Energy Cannon Heavy Particle Cannon Ballistic Gun Heavy Assault Rifle Ballistic Cannon Assault Cannon Launcher Grenade Launcher Slashing Weapon Scythe Build | -11 -10 -10 -9 -9 -9 -8 -8 -8 -7 -7 -6 -5 -5 -4 -4 -3 ------- Run | Yrd Mat Min Mat Min Exi Min Mat Sto Fac Low Zio Pro Fac Fac DSF Res Slots Evolved 14 | . . . 2 . . . 2 . 2 . . . 4 2 . 2 Power 1 | . . . . . . . . . 1 . . . . . . . Propulsion 3 | . . . 2 . . . . . . . . . . 1 . . Utility 9 | . . . . . . . 2 . . . . . 4 1 . 2 Weapon 1 | . . . . . . . . . 1 . . . . . . . Parts Attached 146 | 8 . . 16 . . 1 31 18 10 1 1 8 38 1 4 9 Power 17 | 2 . . 2 . . . 2 3 1 . . 1 5 . . 1 Engine 9 | 2 . . 2 . . . 1 2 . . . . 2 . . . Core 7 | . . . . . . . 1 1 1 . . 1 3 . . . Reactor 1 | . . . . . . . . . . . . . . . . 1 Propulsion 46 | 2 . . 6 . . . 8 4 2 . . 4 11 . 4 5 Treads 18 | . . . . . . . 4 4 2 . . 4 4 . . . Leg 12 | . . . 4 . . . . . . . . . 7 . . 1 Wheel 6 | 2 . . . . . . 4 . . . . . . . . . Hover 6 | . . . . . . . . . . . . . . . 4 2 Flight 4 | . . . 2 . . . . . . . . . . . . 2 Utility 36 | 2 . . 1 . . . 10 6 2 1 1 1 9 1 . 2 Device 19 | 1 . . 1 . . . 5 3 1 1 . 1 4 . . 2 Storage 4 | 1 . . . . . . 2 1 . . . . . . . . Processor 4 | . . . . . . . 1 1 . . . . 2 . . . Hackware 3 | . . . . . . . . . . . 1 . 1 1 . . Protection 6 | . . . . . . . 2 1 1 . . . 2 . . . Artifact . | . . . . . . . . . . . . . . . . . Weapon 47 | 2 . . 7 . . 1 11 5 5 . . 2 13 . . 1 Energy Gun 15 | . . . 1 . . . 4 2 1 . . 1 6 . . . Energy Cannon 3 | . . . . . . . . . 2 . . . 1 . . . Ballistic Gun 8 | 2 . . 2 . . . 1 1 . . . . 2 . . . Ballistic Cannon 5 | . . . . . . 1 2 1 . . . . 1 . . . Launcher 9 | . . . 4 . . . 1 1 1 . . 1 1 . . . Special Weapon . | . . . . . . . . . . . . . . . . . Impact Weapon . | . . . . . . . . . . . . . . . . . Slashing Weapon 7 | . . . . . . . 3 . 1 . . . 2 . . 1 Piercing Weapon . | . . . . . . . . . . . . . . . . . Special Melee Weapon . | . . . . . . . . . . . . . . . . . Unidentified Prototypes 1 | . . . 1 . . . . . . . . . . . . . Parts Lost 61 | . . . 13 . . . 14 2 2 . . 3 22 . 2 3 Power 6 | . . . 1 . . . 2 1 . . . 1 1 . . . Propulsion 26 | . . . 6 . . . 5 . 2 . . 2 9 . 1 1 Utility 11 | . . . . . . . 5 . . . . . 4 . 1 1 Weapon 18 | . . . 6 . . . 2 1 . . . . 8 . . 1 Highest Loss Streak 12 | . . . 12 . . . 4 1 2 . . 2 10 . 2 3 To Critical Strikes 2 | . . . . . . . 1 . . . . . 1 . . . Average Slot Usage (%) 83 | . 100 100 54 44 44 44 87 92 93 91 86 90 90 1 5 13 Engine 5 | . 14 14 8 11 11 11 3 2 7 7 7 4 3 . . . Core 2 | . . . . . . . 3 5 3 . . 4 6 . . . Treads 22 | . . . . . . . 26 34 29 30 30 29 15 . . . Wheel 1 | . 28 28 6 . . . 1 . . . . . . . . . Device 8 | . 14 14 10 11 11 11 15 8 7 14 7 4 7 . . 2 Storage 6 | . 14 14 4 . . . 10 9 7 7 7 7 4 . . . Processor 6 | . . . . . . . 1 11 7 7 7 7 10 . . . Hackware 2 | . . . . . . . . . . . 2 7 8 1 1 . Protection 3 | . . . . . . . 6 3 6 . . . 7 . . . Energy Gun 3 | . . . 1 . . . 7 6 6 . . 2 8 . . . Energy Cannon 6 | . . . . . . . . . 6 15 15 14 3 . . . Ballistic Gun 3 | . 28 28 11 11 11 11 1 5 3 . . . . . . . Slashing Weapon 3 | . . . . . . . 4 3 3 7 7 4 . . . 3 Naked Turns 111 | . . . 2 . . . . . . . . . 35 20 16 38 Heaviest Build 81 | 13 13 13 13 6 6 6 36 57 69 64 58 71 81 . . 12 Greatest Support 96 | 20 20 20 45 11 11 11 86 88 88 84 84 90 96 3 22 14 Greatest Overweight (x) 3 | . . . 3 . . . 1 2 . . . 1 2 . . 1 Average Overweight (x) . | . . . . . . . . . . . . . . . . . Largest Inventory Capacity 20 | 8 8 8 8 5 5 5 10 20 20 20 20 20 20 5 5 5 Average Capacity 16 | 7 8 8 6 5 5 5 9 19 20 20 20 20 19 5 5 5 Most Carried 20 | 4 8 8 8 5 5 5 10 20 20 17 20 20 20 5 5 5 Average Carried 14 | 2 6 8 5 5 5 5 7 16 18 16 19 19 16 4 4 4 Final Capacity 20 | 8 8 8 5 5 5 5 10 20 20 20 20 20 5 5 5 5 Final Carried 20 | 4 8 8 5 5 5 5 10 20 17 16 20 20 5 4 5 5 Class Distribution -------------------- 37% | Scavenger-Mutant 36% | Mutant 7% | Scavenger-Tank 5% | Scavenger-Gunner 5% | Hacker-Mutant 3% | Commander-Mutant Dominant Class ---------------- Mutant | -10/Materials Mutant | -10/Mines Mutant | -9/Materials Mutant | -9/Mines Mutant | -9/Exiles Mutant | -8/Mines Mutant | -8/Materials Scavenger-Mutant | -8/Storage Scavenger-Mutant | -7/Factory Scavenger-Mutant | -7/Lower Caves Scavenger-Mutant | -6/Zion Scavenger-Gunner | -5/Proximity Caves Scavenger-Tank | -5/Factory Mutant | -4/Factory Mutant | -4/DSF Mutant | -3/Research Resources | -11 -10 -10 -9 -9 -9 -8 -8 -8 -7 -7 -6 -5 -5 -4 -4 -3 ----------- Run | Yrd Mat Min Mat Min Exi Min Mat Sto Fac Low Zio Pro Fac Fac DSF Res Matter Collected 2341 | 193 . 101 274 . . 65 543 400 . 18 70 155 514 . 8 . Remotely 6 | . . . . . . . 6 . . . . . . . . . Salvage Created 2900 | 25 . 235 350 . . . 563 764 77 . . 136 750 . . . Parts 176 | 4 . 13 24 . . . 28 44 10 . . 12 41 . . . Haulers Intercepted 2 | . . . . . . . . 1 . . . . 1 . . . Recyclers Shooed 1 | . . . . . . . . . 1 . . . . . . . Parts Field Recycled . | . . . . . . . . . . . . . . . . . Retrieved Matter . | . . . . . . . . . . . . . . . . . Parts Self-Destructed 26 | . . . . . . . . . . . 2 24 . . . . Prevented 3 | . . . . . . . . . . . . 3 . . . . Kills | -11 -10 -10 -9 -9 -9 -8 -8 -8 -7 -7 -6 -5 -5 -4 -4 -3 ------- Run | Yrd Mat Min Mat Min Exi Min Mat Sto Fac Low Zio Pro Fac Fac DSF Res Combat Hostiles Destroyed 70 | . . 5 12 . . . 17 14 5 . . 6 11 . . . Melee 2 | . . . . . . . 1 . . . . . 1 . . . Guns 33 | . . 5 3 . . . 10 7 1 . . . 7 . . . Cannons 15 | . . . . . . . 6 3 . . . 4 2 . . . AOE 20 | . . . 9 . . . . 4 4 . . 2 1 . . . Classes Destroyed 15 | 1 . 3 3 . . . 2 2 1 . . 1 2 . . . Worker 3 | . . . 1 . . . . . 1 . . . 1 . . . Builder 4 | . . . 2 . . . . 1 . . . . 1 . . . Tunneler 1 | 1 . . . . . . . . . . . . . . . . Hauler 2 | . . . . . . . . 1 . . . . 1 . . . Recycler 3 | . . 1 . . . . . 2 . . . . . . . . Operator 3 | . . . . . . . . 2 . . . . 1 . . . Drone 2 | . . . . . . . . . . . . 2 . . . . Watcher 1 | . . . . . . . . . . . . . 1 . . . Swarmer 22 | . . 3 3 . . . 5 4 4 . . 3 . . . . Saboteur 1 | . . . . . . . . . . . . . 1 . . . Grunt 27 | . . 2 7 . . . 6 8 . . . . 4 . . . Duelist 1 | . . . . . . . 1 . . . . . . . . . Sentry 9 | . . . 2 . . . 4 3 . . . . . . . . Hunter 5 | . . . . . . . 1 . . . . . 4 . . . Programmer 4 | . . . . . . . . . 1 . . 1 2 . . . Best Kill Streak 7 | 1 . 3 7 . . . 3 5 6 . . 3 3 . . . Combat Bots Only 6 | . . 3 6 . . . 3 4 5 . . 3 3 . . . Max Kills in Single Turn 3 | 1 . 2 3 . . . 1 3 2 . . 2 2 . . . Gunslinging 1 | . . 1 . . . . . . . . . . . . . . Exploded 3 | . . . 3 . . . . 2 1 . . 2 1 . . . Melee 1 | . . . . . . . 1 . . . . . 1 . . . Uniques/NPCs Destroyed . | . . . . . . . . . . . . . . . . . Combat | -11 -10 -10 -9 -9 -9 -8 -8 -8 -7 -7 -6 -5 -5 -4 -4 -3 -------- Run | Yrd Mat Min Mat Min Exi Min Mat Sto Fac Low Zio Pro Fac Fac DSF Res Hostile Shots Fired 1014 | . . 18 125 . . 2 258 93 20 2 . 35 304 . 28 129 Missed 329 | . . 9 37 . . 1 72 25 6 . . 11 99 . 6 63 Damage Taken 12071 | . . 86 1256 . . 17 2724 952 224 20 . 408 3918 . 943 1523 Core 3690 | . . 24 327 . . . 325 102 14 . . . 640 . 933 1325 Absorbed by Shields . | . . . . . . . . . . . . . . . . . Regen/Repaired (Parts) 153 | . . . . . . . . . . . . . 153 . . . Core Remaining (%) 54 | 100 . 90 . . . 18 . 22 . . . 98 36 . 18 . Volleys Fired 241 | 3 . 13 43 . . 4 63 49 7 1 . 10 48 . . . Largest 3 | 2 . 2 2 . . 1 2 2 3 2 . 3 3 . . . Hottest 225 | 40 . 40 60 . . 23 121 79 134 150 . 225 225 . . . Shots Fired 464 | 6 . 26 58 . . 4 113 80 21 2 . 25 129 . . . Gun 329 | 6 . 26 43 . . 4 79 59 17 . . 7 88 . . . Cannon 106 | . . . . . . . 33 17 . 2 . 16 38 . . . Launcher 29 | . . . 15 . . . 1 4 4 . . 2 3 . . . Special . | . . . . . . . . . . . . . . . . . Kinetic 218 | 6 . 26 43 . . 4 58 48 7 . . . 26 . . . Thermal 203 | . . . . . . . 54 28 7 2 . 23 89 . . . Explosive 29 | . . . 15 . . . 1 4 4 . . 2 3 . . . Electromagnetic 14 | . . . . . . . . . 3 . . . 11 . . . Robot Hit Streak 18 | 2 . 6 8 . . 3 17 18 9 . . 4 12 . . . Robot Miss Streak 4 | 1 . 1 3 . . 2 3 3 4 2 . 3 3 . . . Penetration Max 1 | . . . . . . . . . . . . . 1 . . . Secondary Targets 4 | . . 1 1 . . . 2 . . . . . . . . . Max Gunslinging Chain 1 | . . 1 1 . . . 1 . . . . . . . . . Shots Hit Robots 308 | 4 . 21 28 . . 2 85 60 11 . . 15 82 . . . Core Hits 166 | 2 . 11 28 . . . 29 33 15 . . 12 36 . . . Critical Kills 2 | . . 1 . . . . . 1 . . . . . . . . Critical Parts Destroyed 11 | . . 1 . . . . . 1 . . . . 9 . . . Critical Strikes 20 | . . 2 . . . . 2 6 . . . . 10 . . . Burn 6 | . . . . . . . 2 4 . . . . . . . . Destroy 14 | . . 2 . . . . . 2 . . . . 10 . . . Melee Attacks 19 | . . . . . . . 7 4 . . . . 6 . . 2 Impact . | . . . . . . . . . . . . . . . . . Slashing 19 | . . . . . . . 7 4 . . . . 6 . . 2 Piercing . | . . . . . . . . . . . . . . . . . Sneak Attacks 4 | . . . . . . . 2 2 . . . . . . . . Combat Hostiles . | . . . . . . . . . . . . . . . . . Follow-up Attacks . | . . . . . . . . . . . . . . . . . Damage Inflicted 7245 | 25 . 183 857 . . 29 1511 1385 673 . . 561 2001 . . 20 Guns 3545 | 25 . 183 224 . . 29 930 674 103 . . 117 1260 . . . Cannons 1598 | . . . . . . . 454 294 . . . 274 576 . . . Explosions 1773 | . . . 633 . . . . 254 570 . . 170 146 . . . Melee 283 | . . . . . . . 125 158 . . . . . . . . Ramming 46 | . . . . . . . 2 5 . . . . 19 . . 20 Kinetic 2365 | 25 . 183 224 . . 29 771 609 32 . . . 492 . . . Thermal 2716 | . . . . . . . 613 359 159 . . 391 1194 . . . Explosive 1651 | . . . 633 . . . . 254 448 . . 170 146 . . . Electromagnetic 184 | . . . . . . . . . 34 . . . 150 . . . Impact . | . . . . . . . . . . . . . . . . . Slashing 283 | . . . . . . . 125 158 . . . . . . . . Piercing . | . . . . . . . . . . . . . . . . . Highest Corruption 11 | . . . 5 5 5 5 . . . . . 2 11 . 3 4 Average Corruption 5 | . . . 5 5 5 5 . . . . . 1 7 . 3 3 Corruption Purged . | . . . . . . . . . . . . . . . . . Corruption Blocked . | . . . . . . . . . . . . . . . . . Effects 48 | . . . 15 . 2 3 . . . . . 4 20 . 2 2 Message Errors 13 | . . . 4 . . 1 . . . . . 1 6 . 1 . Matter Fused 10 | . . . 2 . . 1 . . . . . 1 5 . . 1 Heat Flow Errors 6 | . . . 2 . . . . . . . . 1 2 . . 1 Energy Discharges 4 | . . . 1 . 1 1 . . . . . . 1 . . . Parts Rejected 3 | . . . 2 . . . . . . . . . 1 . . . Data Loss (minor) 7 | . . . 1 . 1 . . . . . . . 4 . 1 . Data Loss (major) 3 | . . . 1 . . . . . . . . 1 1 . . . Weapon Failures 2 | . . . 2 . . . . . . . . . . . . . Overload Shots . | . . . . . . . . . . . . . . . . . Overflow Damage 125 | . . . 11 . . . 3 31 50 . . 23 7 . . . Projectiles 26 | . . . . . . . . 2 . . . 17 7 . . . Explosions 72 | . . . 11 . . . . 5 50 . . 6 . . . . Melee 27 | . . . . . . . 3 24 . . . . . . . . Knockbacks 11 | . . . . . . . 5 3 . . . . 3 . . . Impact . | . . . . . . . . . . . . . . . . . Kinetic 11 | . . . . . . . 5 3 . . . . 3 . . . Secondary . | . . . . . . . . . . . . . . . . . Self-Inflicted Damage 194 | . . . 140 . . . . . 21 . . 11 14 . . 8 Shots 7 | . . . 3 . . . . . 2 . . 1 1 . . . Rammed 6 | . . . . . . . . 1 . . . . 1 . . 4 Targets Rammed 8 | . . . . . . . 1 1 . . . . 2 . . 4 Kicked . | . . . . . . . . . . . . . . . . . Crushed 2 | . . . . . . . 1 . . . . . 1 . . . Highest Temperature 479 | . . 9 157 . . . 268 17 54 21 . 459 479 . . 81 Average Temperature 103 | . . 7 40 . . . 60 6 28 14 . 163 137 . . 81 Received Heat Transfer 2436 | . . 27 375 . . 9 909 387 . . . . 702 . . 27 Effects 11 | . . . . . . . 3 . . . . 2 6 . . . Shutdowns 3 | . . . . . . . . . . . . . 3 . . . Energy Bleed 4 | . . . . . . . . . . . . 1 3 . . . Interference 4 | . . . . . . . 3 . . . . 1 . . . . Siege Activations . | . . . . . . . . . . . . . . . . . Robots Corrupted . | . . . . . . . . . . . . . . . . . Combat Hostiles . | . . . . . . . . . . . . . . . . . Parts Fried 1 | . . . . . . . . . . . . . 1 . . . Impact Corruptions . | . . . . . . . . . . . . . . . . . Robots Melted . | . . . . . . . . . . . . . . . . . Combat Hostiles . | . . . . . . . . . . . . . . . . . Parts Melted 11 | . . . . . . . 3 5 . . . . 3 . . . Heat Transferred 5649 | . . . . . . . 1665 1221 211 . . 555 1997 . . . Parts Sabotaged . | . . . . . . . . . . . . . . . . . Parts Stolen 1 | . . . . . . . . . . 1 . . . . . . Parts Stripped . | . . . . . . . . . . . . . . . . . Power Chain Reactions 1 | . . . . . . . . . 1 . . . . . . . Alert | -11 -10 -10 -9 -9 -9 -8 -8 -8 -7 -7 -6 -5 -5 -4 -4 -3 ------- Run | Yrd Mat Min Mat Min Exi Min Mat Sto Fac Low Zio Pro Fac Fac DSF Res Peak Influence 513 | 5 3 125 513 199 . 30 316 484 406 . . . 506 214 149 127 Initial 393 | . 3 . 48 199 . . 11 80 217 . . . 393 214 149 72 Average 218 | . 3 81 290 199 . . 158 224 277 . . . 297 214 134 73 Maximum Alert Level 2 | . . . 2 . . . 1 2 2 . . . 2 1 . . Low Security (%) 47 | 100 100 100 31 100 . 100 77 46 7 . . . 19 . 100 100 Level 1 40 | . . . 43 . . . 22 46 63 . . . 61 100 . . Level 2 11 | . . . 25 . . . . 7 29 . . . 18 . . . Level 3 . | . . . . . . . . . . . . . . . . . Level 4 . | . . . . . . . . . . . . . . . . . Level 5 . | . . . . . . . . . . . . . . . . . High Security . | . . . . . . . . . . . . . . . . . Max Security . | . . . . . . . . . . . . . . . . . Squads Dispatched 23 | . . . 3 . . . 7 4 2 . . . 5 . 1 1 Investigation 3 | . . . . . . . 1 . 1 . . . 1 . . . Extermination 1 | . . . . . . . . . . . . . 1 . . . Reinforcement 13 | . . . 3 . . . . 4 1 . . . 3 . 1 1 Assault . | . . . . . . . . . . . . . . . . . Garrison 6 | . . . . . . . 6 . . . . . . . . . Intercept . | . . . . . . . . . . . . . . . . . Searches Triggered 1 | . . . . . . . . . . . . . 1 . . . Construction Impeded 2 | . . . 1 . . . . . . . . . 1 . . . Haulers Reinforced . | . . . . . . . . . . . . . . . . . Active Scanning Responses . | . . . . . . . . . . . . . . . . . Cargo Convoy Interrupts 1 | . . . . . . . . . . . . . 1 . . . Stealth | -11 -10 -10 -9 -9 -9 -8 -8 -8 -7 -7 -6 -5 -5 -4 -4 -3 --------- Run | Yrd Mat Min Mat Min Exi Min Mat Sto Fac Low Zio Pro Fac Fac DSF Res Distress Signals 18 | . . . 4 . . . 6 3 2 . . 1 2 . . . Communications Jammed . | . . . . . . . . . . . . . . . . . Distress Signals . | . . . . . . . . . . . . . . . . . Times Spotted 191 | . . 5 32 . . 3 41 34 7 1 . 8 44 . 3 13 Peak Tracking Total 14 | . . 3 11 . . 3 13 6 5 1 . 4 12 . 3 14 Tactical Retreats 23 | . . . 6 . . 1 5 3 . . . 1 5 . . 2 Traps | -11 -10 -10 -9 -9 -9 -8 -8 -8 -7 -7 -6 -5 -5 -4 -4 -3 ------- Run | Yrd Mat Min Mat Min Exi Min Mat Sto Fac Low Zio Pro Fac Fac DSF Res Traps Triggered 6 | . . . . . . . 1 1 1 . . . 2 . 1 . Indirectly . | . . . . . . . . . . . . . . . . . Trap Hack Attempts . | . . . . . . . . . . . . . . . . . Triggered . | . . . . . . . . . . . . . . . . . Disarmed . | . . . . . . . . . . . . . . . . . Reprogrammed . | . . . . . . . . . . . . . . . . . Reused . | . . . . . . . . . . . . . . . . . Traps Extracted . | . . . . . . . . . . . . . . . . . Installed . | . . . . . . . . . . . . . . . . . Triggered . | . . . . . . . . . . . . . . . . . Machines | -11 -10 -10 -9 -9 -9 -8 -8 -8 -7 -7 -6 -5 -5 -4 -4 -3 ---------- Run | Yrd Mat Min Mat Min Exi Min Mat Sto Fac Low Zio Pro Fac Fac DSF Res Machines Disabled 10 | . . . 3 . . . 1 2 2 . . . 1 . . 1 Max in Single Turn 2 | . . . 2 . . . 1 1 2 . . . . . . . Garrison Access 1 | . . . . . . . . . . . . . 1 . . . Machines Repaired . | . . . . . . . . . . . . . . . . . Machines Dismantled . | . . . . . . . . . . . . . . . . . Machines Sabotaged . | . . . . . . . . . . . . . . . . . Overloaded Fab Kills . | . . . . . . . . . . . . . . . . . Hacking | -11 -10 -10 -9 -9 -9 -8 -8 -8 -7 -7 -6 -5 -5 -4 -4 -3 --------- Run | Yrd Mat Min Mat Min Exi Min Mat Sto Fac Low Zio Pro Fac Fac DSF Res Machines Accessed 23 | . 1 . 6 . 2 . 3 6 1 . . . 3 1 . . Terminals 17 | . 1 . 5 . . . 3 6 1 . . . . 1 . . Fabricators 1 | . . . . . . . . . . . . . 1 . . . Repair Stations 1 | . . . . . . . . . . . . . 1 . . . Recycling Units 1 | . . . 1 . . . . . . . . . . . . . Scanalyzers . | . . . . . . . . . . . . . . . . . Garrison Access 1 | . . . . . . . . . . . . . 1 . . . Total Hacks 48 | . 1 . 15 . 2 . 7 10 4 . . . 8 1 . . Successful 20 | . . . 6 . 2 . 1 4 2 . . . 4 1 . . Failed 28 | . 1 . 9 . . . 6 6 2 . . . 4 . . . Catastrophic 9 | . 1 . 3 . . . 4 . . . . . 1 . . . Database Lockouts . | . . . . . . . . . . . . . . . . . Manual 27 | . . . 8 . . . 5 . 1 . . . 8 . . 5 Terminals 35 | . 1 . 12 . . . 7 10 4 . . . . 1 . . Fabricators 2 | . . . . . . . . . . . . . 2 . . . Repair Stations 4 | . . . . . . . . . . . . . 4 . . . Recycling Units 3 | . . . 3 . . . . . . . . . . . . . Scanalyzers . | . . . . . . . . . . . . . . . . . Garrison Access 2 | . . . . . . . . . . . . . 2 . . . Terminal Hacks 15 | . . . 5 . 2 . 1 4 2 . . . . 1 . . Record 2 | . . . . . 2 . . . . . . . . . . . Open Door 2 | . . . . . . . . 2 . . . . . . . . Open DSF 1 | . . . . . . . . . . . . . . 1 . . Branch Access Points 1 | . . . 1 . . . . . . . . . . . . . Terminal Index 3 | . . . 1 . . . 1 . 1 . . . . . . . Locate Traps 1 | . . . . . . . . 1 . . . . . . . . Maintenance Status 1 | . . . 1 . . . . . . . . . . . . . Zone Layout 4 | . . . 2 . . . . 1 1 . . . . . . . Fabricator Hacks 1 | . . . . . . . . . . . . . 1 . . . Load Schematic 1 | . . . . . . . . . . . . . 1 . . . Repair Station Hacks 2 | . . . . . . . . . . . . . 2 . . . Scan Component 1 | . . . . . . . . . . . . . 1 . . . Repair 1 | . . . . . . . . . . . . . 1 . . . Recycling Unit Hacks 1 | . . . 1 . . . . . . . . . . . . . Report Inventory 1 | . . . 1 . . . . . . . . . . . . . Scanalyzer . | . . . . . . . . . . . . . . . . . Garrison Access Hacks 1 | . . . . . . . . . . . . . 1 . . . Seal Access 1 | . . . . . . . . . . . . . 1 . . . Unauthorized Hacks . | . . . . . . . . . . . . . . . . . Terminals . | . . . . . . . . . . . . . . . . . Fabricators . | . . . . . . . . . . . . . . . . . Repair Stations . | . . . . . . . . . . . . . . . . . Recycling Units . | . . . . . . . . . . . . . . . . . Scanalyzers . | . . . . . . . . . . . . . . . . . Garrison Access . | . . . . . . . . . . . . . . . . . Data Cores Recovered . | . . . . . . . . . . . . . . . . . Used . | . . . . . . . . . . . . . . . . . Hacking Detections 17 | . 1 . 4 . . . 3 5 1 . . . 3 . . . Full Trace Events . | . . . . . . . . . . . . . . . . . Feedback Events . | . . . . . . . . . . . . . . . . . Feedback Blocked . | . . . . . . . . . . . . . . . . . Robot Schematics Acquired 3 | . . . . . . . . . . . 3 . . . . . Robots Built . | . . . . . . . . . . . . . . . . . Authchips . | . . . . . . . . . . . . . . . . . Time . | . . . . . . . . . . . . . . . . . Total Robot Build Rating . | . . . . . . . . . . . . . . . . . Part Schematics Acquired 14 | . . . . . . . . . . . 14 . . . . . Parts Built . | . . . . . . . . . . . . . . . . . Authchips . | . . . . . . . . . . . . . . . . . Time . | . . . . . . . . . . . . . . . . . Total Part Build Rating . | . . . . . . . . . . . . . . . . . Parts Repaired 1 | . . . . . . . . . . . . . 1 . . . Time 22 | . . . . . . . . . . . . . 22 . . . Parts Recycled . | . . . . . . . . . . . . . . . . . Recycled Matter . | . . . . . . . . . . . . . . . . . Retrieved Matter . | . . . . . . . . . . . . . . . . . Retrieved Components . | . . . . . . . . . . . . . . . . . Parts Scanalyzed . | . . . . . . . . . . . . . . . . . Part Schematics Acquired . | . . . . . . . . . . . . . . . . . Parts Damaged . | . . . . . . . . . . . . . . . . . Bothacking | -11 -10 -10 -9 -9 -9 -8 -8 -8 -7 -7 -6 -5 -5 -4 -4 -3 ------------ Run | Yrd Mat Min Mat Min Exi Min Mat Sto Fac Low Zio Pro Fac Fac DSF Res Used RIF Installer . | . . . . . . . . . . . . . . . . . Robots Hacked . | . . . . . . . . . . . . . . . . . Non-combat . | . . . . . . . . . . . . . . . . . Combat . | . . . . . . . . . . . . . . . . . Robot Hacks Applied . | . . . . . . . . . . . . . . . . . Relay Couplers Released . | . . . . . . . . . . . . . . . . . Fabnet Peak Effective % . | . . . . . . . . . . . . . . . . . Robots Rewired 1 | . . . . . . . . 1 . . . . . . . . Allies Hacked . | . . . . . . . . . . . . . . . . . Hacks Repelled . | . . . . . . . . . . . . . . . . . Allies | -11 -10 -10 -9 -9 -9 -8 -8 -8 -7 -7 -6 -5 -5 -4 -4 -3 -------- Run | Yrd Mat Min Mat Min Exi Min Mat Sto Fac Low Zio Pro Fac Fac DSF Res Total Allies 27 | . . 2 . . . . . 10 . . 4 . 8 . . 3 Largest Group 10 | . . 2 2 . . . . 10 . . 4 4 5 . . 2 Highest-Rated Group 402 | . . 48 48 . . . . 173 . . 153 153 402 . . 206 Highest-Rated Ally 103 | . . 31 31 . . . . 29 . . 39 39 96 . . 103 Zionite Dispatches 5 | . . . . . . . . . . . . . 3 . . 2 Heavy 2 | . . . . . . . . . . . . . 1 . . 1 Light 1 | . . . . . . . . . . . . . 1 . . . Demo 1 | . . . . . . . . . . . . . . . . 1 Offense Resupply 1 | . . . . . . . . . . . . . 1 . . . Total Orders 7 | . . . . . . . . 2 1 2 . 2 . . . . EXPLORE 7 | . . . . . . . . 2 1 2 . 2 . . . . Ally Attacks 197 | . . . 16 . . . . 90 . . . 19 67 . . 5 Total Damage 3992 | . . . 234 . . . . 1344 . . . 222 1977 . . 215 Kills 35 | . . . 4 . . . . 12 . . . 7 12 . . . Allies Corrupted 1 | . . . . . . . . . . . . 1 . . . . Allies Melted 1 | . . . 1 . . . . . . . . . . . . . Intel | -11 -10 -10 -9 -9 -9 -8 -8 -8 -7 -7 -6 -5 -5 -4 -4 -3 ------- Run | Yrd Mat Min Mat Min Exi Min Mat Sto Fac Low Zio Pro Fac Fac DSF Res Robot Analysis Total . | . . . . . . . . . . . . . . . . . Derelict Logs Recovered 5 | . . . . . . . . . . 1 2 2 . . . . Drone Launches 9 | . . . . . . . . 3 2 2 . 2 . . . . Drone Recoveries 2 | . . . . . . . . 2 . . . . . . . . Decoded 0b10 Intel 19 | . . . . . . . . . . . . . 19 . . . Traps 18 | . . . . . . . . . . . . . 18 . . . Exits 1 | . . . . . . . . . . . . . 1 . . . Exploration | -11 -10 -10 -9 -9 -9 -8 -8 -8 -7 -7 -6 -5 -5 -4 -4 -3 ------------- Run | Yrd Mat Min Mat Min Exi Min Mat Sto Fac Low Zio Pro Fac Fac DSF Res Turns Passed 7927 | 77 97 122 532 6 64 108 999 996 494 322 1685 712 1384 21 44 264 Spaces Moved 5197 | 69 116 91 693 16 161 244 455 460 285 24 1100 306 713 40 64 360 Core 283 | 3 . . 59 . . . . . . . . . 62 40 50 69 Treads 3024 | . . . . . . . 392 431 285 24 1100 306 486 . . . Legs 175 | . . . 10 . . . . . . . . . 165 . . . Wheels 518 | 66 116 91 154 . . . 62 29 . . . . . . . . Hover 291 | . . . . . . . . . . . . . . . 14 277 Flight 906 | . . . 470 16 161 244 1 . . . . . . . . 14 Fastest Speed 37 | 50 80 80 40 40 40 40 40 100 145 152 152 152 50 50 50 37 Average Speed 118 | 78 80 80 52 40 40 40 158 143 148 152 152 160 157 50 54 65 Slowest Speed 270 | 80 80 80 200 40 40 40 170 225 152 152 152 235 270 50 70 110 Overloaded Moves . | . . . . . . . . . . . . . . . . . Propulsion Burnouts . | . . . . . . . . . . . . . . . . . Robots Hopped 6 | . . . 4 . . 2 . . . . . . . . . . Cave-ins Triggered 2 | . . . 1 . . . . . . . . . 1 . . . Exploration Rate (%) 42 | 5 26 27 59 4 56 69 27 84 8 76 89 95 20 1 68 13 Regions Visited 16 Branch Regions 8 Pre-discovered Areas 2 | . . . . . . . . . . . 2 . . . . . Known Exits Taken 3 | . . . 1 . . . . . . . . . 1 1 . . Unknown Exits Taken 12 | 1 1 1 . 1 1 1 1 1 1 1 1 1 . . . . Scrap Searched 8 | . . . . . . 2 . . . 1 4 1 . . . . Spaces Dug 40 | . . . 28 . . . 4 . . . . . 6 . . 2 Terrain Destroyed 279 | . . . 160 . . . 19 26 31 . . 14 27 . . 2 Melee 12 | . . . . . . . 4 . . . . . 6 . . 2 Projectile 10 | . . . . . . . 7 1 . . . . 2 . . . AOE 257 | . . . 160 . . . 8 25 31 . . 14 19 . . . Terrain Rammed . | . . . . . . . . . . . . . . . . . Walls Destroyed . | . . . . . . . . . . . . . . . . . Machines Disabled . | . . . . . . . . . . . . . . . . . Actions | -11 -10 -10 -9 -9 -9 -8 -8 -8 -7 -7 -6 -5 -5 -4 -4 -3 --------- Run | Yrd Mat Min Mat Min Exi Min Mat Sto Fac Low Zio Pro Fac Fac DSF Res Total 6466 | 82 119 119 802 15 160 247 599 705 340 308 1116 504 856 40 70 384 Wait 776 | . . 14 43 . . . 28 156 36 282 1 176 35 . . 5 Move 5169 | 68 115 90 684 15 160 239 454 459 284 23 1099 305 712 39 63 360 Hop 6 | . . . 4 . . 2 . . . . . . . . . . Pick Up 62 | 3 4 1 5 . . . 8 14 . . 9 2 13 . 1 2 Fast Attach 60 | 7 . . 9 . . 1 16 7 3 . 1 2 4 . 4 6 Attach 41 | . . . 6 . . . 3 4 3 1 . . 21 1 . 2 Detach 3 | . . . 1 . . . . . . . . . 1 . . 1 Swap 45 | 1 . . 1 . . . 12 7 4 . . 6 13 . . 1 Drop 32 | . . 1 6 . . 1 7 2 3 1 6 3 1 . . 1 Fire 241 | 3 . 13 43 . . 4 63 49 7 1 . 10 48 . . . Melee 19 | . . . . . . . 7 4 . . . . 6 . . 2 Ram 4 | . . . . . . . . . . . . . . . . 4 Kick . | . . . . . . . . . . . . . . . . . Crush 4 | . . . . . . . 1 1 . . . . 2 . . . Escape Stasis . | . . . . . . . . . . . . . . . . . Rewire 4 | . . . . . . . . 2 . . . . . . 2 . Trap . | . . . . . . . . . . . . . . . . . Miscellaneous . | . . . . . . . . . . . . . . . . . Route ------- -11/Scrapyard -10/Materials -10/Mines -9/Materials (discovered 2 exits: *Min x2) -9/Mines -9/Exiles -8/Mines -8/Materials (discovered 2 exits: *Fac / *Sto) -8/Storage -7/Factory -7/Lower Caves -6/Zion -5/Proximity Caves -5/Factory (discovered 5 exits: *Fac x3 / *Upp x2) -4/Factory (discovered 2 exits: *Res / DSF) -4/DSF -3/Research History --------- Turn | Location | Event 25 | -11/Scrapyard | Discovered new exit (range 15) 78 | -11/Scrapyard | Entered Materials 108 | -10/Materials | Discovered new exit (range 12) 175 | -10/Materials | Entered Mines 197 | -10/Mines | Met a Derelict bent on vengeance 248 | -10/Mines | Discovered new exit (range 14) 297 | -10/Mines | Entered Materials 297 | -9/Materials | Accompanied by 2 allies 297 | -9/Materials | Evolved 2 slots: Propulsion x2 302 | -9/Materials | Led the pair of lost Derelicts to an unsafe place 321 | -9/Materials | Build established: Mutant 500 | -9/Materials | Core integrity fell below 50% 534 | -9/Materials | Lost 12 parts (1p6n5w) 744 | -9/Materials | Core integrity fell below 20% 748 | -9/Materials | Crushed by falling debris 799 | -9/Materials | Identified exit to Mines 829 | -9/Materials | Entered Mines 834 | -9/Mines | Deemed a non-threat by the Exiles lab entrance 834 | -9/Mines | Discovered new exit (range 5) 835 | -9/Mines | Entered Exiles 835 | -9/Exiles | Found Exiles lab abandoned 896 | -9/Exiles | Discovered new exit (range 10) 899 | -9/Exiles | Entered Mines 1004 | -8/Mines | Discovered new exit (range 9) 1007 | -8/Mines | Entered Materials 1007 | -8/Materials | Evolved 2 slots: Utility x2 1027 | -8/Materials | Found Powered Armor 1142 | -8/Materials | Garrison activated, responded to threat 1748 | -8/Materials | Garrison activated, responded to threat 1986 | -8/Materials | Lost 4 parts (1n2u1w) 1990 | -8/Materials | Discovered new exit (range 16) 1998 | -8/Materials | Discovered new exit (range 16) 2000 | -8/Materials | Core integrity fell below 50% 2006 | -8/Materials | Entered Storage 2032 | -8/Storage | Lost 4 parts (1p2n1u) 2642 | -8/Storage | Build established: Scavenger-Mutant 2674 | -8/Storage | Assisted by bots powering up and referring to "LRC-V3" 2749 | -8/Storage | Lost 4 allies 2973 | -8/Storage | Lost 3 allies 2980 | -8/Storage | Discovered new exit (range 16) 3002 | -8/Storage | Entered Factory 3002 | -7/Factory | Evolved 2 slots: Power x1, Weapon x1 3022 | -7/Factory | Lost 3 allies 3313 | -7/Factory | Discovered new exit (range 14) 3496 | -7/Factory | Entered Lower Caves 3508 | -7/Lower Caves | Learned Factory terminal intel 3802 | -7/Lower Caves | A Derelict revealed a hidden shortcut to a safe place 3818 | -7/Lower Caves | Entered Zion 4236 | -6/Zion | Learned Factory emergency access door positions 4273 | -6/Zion | Learned Factory terminal intel 4291 | -6/Zion | Learned location of Armory (-4) 4331 | -6/Zion | Learned 4 Factory zone layouts 4609 | -6/Zion | Imprinted 4612 | -6/Zion | Declared Zion's savior 5467 | -6/Zion | Given A8's code to call for help 5487 | -6/Zion | Discovered new exit (range 9) 5503 | -6/Zion | Entered Proximity Caves 5503 | -5/Proximity Caves | Accompanied by 4 allies 5514 | -5/Proximity Caves | Learned location of 1 exit from Factory 5608 | -5/Proximity Caves | Spotter reported a threat 5726 | -5/Proximity Caves | Spotter reported a threat 5862 | -5/Proximity Caves | Discovered new exit (range 83) 5919 | -5/Proximity Caves | P-70 Sage assimilated allied QG-A7B(M) 6102 | -5/Proximity Caves | Learned Factory terminal intel 6215 | -5/Proximity Caves | Entered Factory 6215 | -5/Factory | Accompanied by 1 ally 6215 | -5/Factory | Evolved 4 slots: Utility x4 6216 | -5/Factory | Identified exit to Factory 6219 | -5/Factory | Loaded intel: 28 terminal locations 6501 | -5/Factory | Build established: Scavenger-Tank 6515 | -5/Factory | Search patrols dispatched 6545 | -5/Factory | Zion Offense Resupply teleported in 6836 | -5/Factory | Repaired Med. Treads 6872 | -5/Factory | Identified exit to Upper Caves 6976 | -5/Factory | Lost 6 parts (2n2u2w) 7052 | -5/Factory | Crushed by falling debris 7083 | -5/Factory | Lost 3 parts (2n1w) 7155 | -5/Factory | Discovered exit to Upper Caves (range 16) 7230 | -5/Factory | Discovered exit to Factory (range 5) 7335 | -5/Factory | Build established: Hacker-Mutant 7341 | -5/Factory | Zion Heavy squad teleported in 7407 | -5/Factory | Zion Light squad teleported in 7414 | -5/Factory | Enhanced Grunt warped into view, answering call for help 7418 | -5/Factory | Enhanced Grunt warped into view, answering call for help 7450 | -5/Factory | Terminal network hard line cut 7504 | -5/Factory | Cargo convoy interrupted 7528 | -5/Factory | System corruption reached 10% 7564 | -5/Factory | Released all parts (10) 7566 | -5/Factory | Lost 4 allies 7567 | -5/Factory | Core integrity fell below 50% 7593 | -5/Factory | Lost 10 parts (1p4n2u3w) 7593 | -5/Factory | Discovered exit to Factory (range 5) 7599 | -5/Factory | Entered another Factory area 7599 | -4/Factory | Evolved 2 slots: Propulsion x1, Utility x1 7599 | -4/Factory | Discovered new exit (range 12) 7600 | -4/Factory | Loaded intel: 26 terminal locations 7620 | -4/Factory | Identified exit to DSF 7620 | -4/Factory | Entered DSF 7643 | -4/DSF | Additional patrols routed to DSF 7646 | -4/DSF | Core integrity fell below 50% 7656 | -4/DSF | Discovered new exit (range 15) 7664 | -4/DSF | Entered Research 7664 | -3/Research | Evolved 2 slots: Utility x2 7756 | -3/Research | Zion Heavy squad teleported in 7819 | -3/Research | Build established: Mutant 7869 | -3/Research | Zion Demo squad teleported in 7894 | -3/Research | Core integrity fell below 50% 7915 | -3/Research | Core integrity fell below 20% 7923 | -3/Research | Lost 3 parts (1n1u1w) 7928 | -3/Research | Destroyed by C-35 Carver with Carbide Saw Last Messages --------------- 07890_ Mic. Antimatter Reactor severed. 07891_ The unstable cave ceiling collapses. 07891_ U-05 Engineer lays Concrete. 07892_ Gyrokinetic Inverter destroyed. 07892_ K-01 Serf collects debris. 07892_ Penetrated by Slug. 07893_ System corrupted: Matter fused (-8). 07893_ U-05 Engineer lays Concrete. 07909_ Slammed into C-35 Carver. 07912_ Destabilizing: Core damaged (-65). 07913_ Slug penetrates H-77 Assassin. 07913_ Slug penetrates Wall. 07914_ Penetrated by Slug. 07917_ Slug penetrates Wall. 07917_ Acquired Impulse Thruster. 07921_ Slug penetrates Wall. 07923_ Impulse Thruster severed. 07927_ System corrupted: Heat flow error (+127). 07927_ Door malfunctions. [Achievement: Just Browsing] Map ----- +----------------------------------------------------+ | ????????????# !] # #?? ? ??? ???? | | ????????????# # ###"## % ???? ???? | | ????????????# # ???? ???? | | ????????????# T"" + #??????# #??? | | ????????????# """"" # #??????# #??? | | ????????????# # #??????# #??? | | ????????????# # #??????# #??? | | ????????????##########"## #??????# #??? | | ???????????????# # #??????# #??? | | ???????????????# %= #??????# #??? | | ???????????????# !%! ######## #### | | ???????????????# = | | ???????????????#""" * H | | ??????????????##"T | | ?????????????## | | ?????????????# [ % | | ?????????????### ## #### | | ??????????????# ###### ##### ###### #??# | | ??########????# %] ## #???# #????# #??# | | ??# !] ######^ ##+##### #????# #??# | | ??# ! # / ! # # #????#+#??# | | ??# ! # # # # #?????????# | | ??# # #####+##### # #?????????# | | ??# / #???# [ # #?????????# | | ??# # ####???# + ??????????# | | #######+## #??????#@ = # ??????????# | | # + ######?#c###### ??????????# | | # #### ## ###c###### ???????????# | | # #??# ##"##"## / # ????????????# | | # #??# ## # # #?????????????# | | # #??# ## # #= #?????????????## | | #######??# ## / = c #??????????????# | | ????????? #! # # #??????????????# | | ????????? #!= # # #??????????????# | | ????????? #== # + #??????????????# | | ????????# # ####### # #??????????????## # | | ????????? ## ####?????# ######???????????????# # | | ????????? ?###???????? ????????????????????# # | | ???????? ???????????*Y ???????????????????# # | | ???????? ??????????? ??????????????????# # | | ???????? ??????????? ##?????????????#####+# | | ???????? ??????????? #?????????#+#### | | ????????## ##???????????#####?????????# + | | ?????????? ???????????????????????????# #### """ | | ??????????????????????????????????##### ???# """ | | ??????????????????????????????????? ???# """ | | ???????????????????????????????????? #### | | ????????????????????????????????????? # | | ?????????????????????????????????????? #/ | | ???????????????????????????############ #/ | +----------------------------------------------------+ Best States ------------- Heat Dissipation 59 Coolant Potential 80 Energy Generation 28 Energy Capacity 465 Matter Stores 300 Matter Capacity 300 Sight Range 16 Terrain Scan Density 10 ECM Strength 1 Additional Mass Support 6 Armor Coverage 400 Phase Shifting 5 Evasion (%) 62 Targeting Accuracy 13 Recoil Reduction 4 Energy Filtering 30 Salvage Targeting 2 Offensive Hacking 25 Item Schematics ----------------- Proton Cannon | -6/Zion | Archive Recoil Nullifier | -6/Zion | Archive Power Amplifier | -6/Zion | Archive Imp. Kinecellerator | -6/Zion | Archive Imp. Weapon Cycler | -6/Zion | Archive Nuclear Pulse Thruster | -6/Zion | Archive Adv. Cryofiber Web | -6/Zion | Archive Hyp. Coil Gun | -6/Zion | Archive Drone Bay | -6/Zion | Archive Imp. Shock Absorption System | -6/Zion | Archive Adv. Sensor Array | -6/Zion | Archive Imp. Recalibrator | -6/Zion | Archive Phase Shifter | -6/Zion | Archive Matter Neutralizer | -6/Zion | Archive Robot Schematics ------------------ R-06 Scavenger | -6/Zion | Archive A-15 Conveyor | -6/Zion | Archive H-66 Slayer | -6/Zion | Archive Fabricated ------------ Nothing Alien Tech Used ----------------- None Achievements -------------- Help From High Places I'm Back, Baby! Just Browsing Streaker Challenges ------------ None Game ------ Seed SignalGhostFemtoactuators Manual? 0 Play Time 01:58:18 Cumulative 34.6 hours Start 2024.06.18 @ 20:37:46 End 2024.06.19 @ 20:06:25 Sessions 3 Manual Loads 0 Difficulty Rogue Special Mode None Game No. 57 Rogue 57 Adventurer 0 Explorer 0 Win Type - Total 0 Types 0/0/0/0/0/0/0/0/0 Lore% 23 Gallery% 25 Achievement% 27 Wizard Run 0 Options --------- Layout 1 ASCII 0 Keyboard 0 Movement Arrows Keybinds 0 Fullscreen 1 Font 24/Crisp Map View 50x40 Zoom Use 0% Tactical HUD 1 Map Filters NONE Filters NONE Steam 1 RUN: 3459cb5f-3226-4fd6-87fb-f34571bff881